bitfinex/quotes_ETHUSD_20251107
["timestamp","ask_amount","ask_price","bid_price","bid_amount"]
[1762527368681,0.0034,3287.9,3287.4,0.4913]
[1762527368883,0.0034,3287.9,3287.8,1.665216]
[1762527369049,0.0034,3287.9,3287.8,2.43165362]
[1762527369254,0.0034,3287.9,3287.8,2.92295362]
[1762527369777,0.0034,3287.9,3287.8,2.43165362]
[1762527369935,0.0034,3287.9,3287.3,1.14034602]
[1762527370165,0.0034,3287.9,3287.4,0.405504]
[1762527370368,0.0034,3287.9,3287.1,0.913]
[1762527370572,0.0034,3287.9,3287.1,2.172712]
[1762527370951,0.0034,3287.9,3287.2,0.405504]
[1762527371179,0.0034,3287.9,3287.1,1.259712]
[1762527371482,0.0034,3287.9,3286.0,0.913]
[1762527371483,0.0034,3287.9,3286.4,0.1878]
[1762527371776,0.0034,3287.9,3287.3,0.405504]
[1762527371980,0.0034,3287.9,3287.5,1.665216]
[1762527372155,0.0034,3287.9,3287.7,1.665216]
[1762527372348,0.0034,3287.9,3287.8,0.557504]
[1762527372881,0.005,3293.9,3289.6,0.1878]
[1762527373087,0.4625,3291.6,3289.9,1.259712]
[1762527373244,0.4625,3291.6,3290.1,1.259712]
[1762527373442,0.4625,3291.6,3289.7,0.4913]
[1762527373744,0.1719,3291.7,3288.2,3.04109243]
[1762527373745,0.533,3290.9,3288.9,1.751012]
[1762527373967,0.533,3290.9,3289.2,0.405504]
[1762527374363,0.533,3290.9,3289.4,1.665216]
[1762527374582,0.533,3290.9,3289.4,2.156516]
[1762527374583,0.0705,3290.9,3289.4,2.156516]
[1762527374862,0.005,3290.9,3289.7,0.405504]
[1762527375096,0.005,3290.9,3289.9,1.665216]
[1762527375304,0.005,3290.9,3290.6,0.405504]
[1762527375664,0.005,3290.9,3290.8,1.665216]
[1762527375893,0.005,3290.9,3290.0,0.912]
[1762527375894,0.005,3290.9,3290.0,6.91116016]
[1762527376110,0.005,3290.9,3290.1,6.8868145]
[1762527376312,0.005,3290.9,3290.2,0.405504]
[1762527376464,0.005,3290.9,3289.7,0.1878]
[1762527376465,0.005,3290.9,3289.9,1.259712]
[1762527376665,0.005,3290.9,3289.8,0.405504]
[1762527376909,0.4625,3290.8,3289.5,5.99916016]
[1762527377110,0.4625,3290.8,3289.5,6.59907618]
[1762527377312,0.0705,3290.9,3289.5,6.59907618]
[1762527377621,0.005,3290.9,3289.6,0.6791]
[1762527377766,0.005,3290.9,3289.8,1.259712]
[1762527377962,0.005,3290.9,3290.3,1.665216]
[1762527378166,0.005,3290.9,3290.6,0.405504]
[1762527378412,0.005,3290.9,3290.8,0.405504]
[1762527378704,0.005,3290.9,3290.8,9.062512]
[1762527378865,0.005,3290.9,3290.8,11.76166276]
[1762527379068,0.005,3292.9,3290.9,1.259712]
[1762527379370,0.005,3292.9,3291.8,1.665216]
[1762527379580,0.005,3292.9,3291.2,0.405504]
[1762527379782,0.005,3292.9,3291.4,0.543304]
[1762527379981,0.005,3292.9,3291.5,0.405504]
[1762527380205,0.005,3292.9,3291.8,0.405504]
[1762527380405,0.005,3292.9,3291.8,1.665216]
[1762527380612,0.005,3292.9,3291.8,5.757348]
[1762527380913,0.005,3292.9,3292.0,1.259712]
[1762527381121,0.005,3292.9,3292.5,10.70158193]
[1762527381414,0.005,3292.9,3292.8,4.70214505]
[1762527381644,0.005,3292.9,3292.8,5.23116209]
[1762527381958,0.005,3292.9,3292.8,1.665216]
[1762527382150,0.005,3292.9,3292.8,5.893206]
[1762527382445,0.005,3293.9,3293.2,3.03654924]
[1762527382655,0.005,3293.9,3293.3,2.420604]
[1762527382941,0.005,3293.9,3293.8,0.405504]
[1762527383242,0.005,3293.9,3293.8,0.38313371]
[1762527383449,0.005,3293.9,3293.0,1.665216]
[1762527383633,0.005,3293.9,3293.4,0.35365456]
[1762527383834,0.005,3293.9,3293.1,0.405504]
[1762527384003,0.1958,3293.8,3293.1,0.35365456]
[1762527384204,0.1958,3293.8,3292.2,0.1878]
[1762527384448,0.1958,3293.8,3292.2,30.1878]
[1762527384748,0.005,3293.9,3292.8,1.259712]
[1762527384929,0.005,3293.9,3293.1,0.405504]
[1762527385103,0.005,3293.9,3292.3,0.4913]
[1762527385104,0.1958,3293.8,3293.2,0.0303656]
[1762527385309,0.005,3293.9,3293.4,1.259712]
[1762527385506,0.005,3293.9,3293.8,3.44151104]
[1762527385752,0.0034,3294.9,3294.8,4.70030158]
[1762527385961,0.005,3296.9,3295.8,4.29387669]
[1762527386254,0.005,3296.9,3296.6,0.405504]
[1762527386419,0.005,3296.9,3296.8,0.405504]
[1762527386629,0.005,3296.9,3296.7,0.405504]
[1762527386834,0.005,3297.9,3296.9,0.405504]
[1762527387015,0.1764,3298.2,3295.9,0.405504]
[1762527387016,3.03250158,3297.7,3295.9,0.405504]
[1762527387216,0.34950016,3297.6,3295.5,0.0303444]
[1762527387426,0.4625,3297.7,3295.6,3.248865]
[1762527387626,0.4625,3298.1,3295.4,0.405504]
[1762527387825,0.4625,3298.1,3295.0,5.99916016]
[1762527388027,0.0984,3298.2,3295.1,31.4003]
[1762527388248,0.4625,3298.0,3295.9,5.99916016]
[1762527388464,0.4625,3298.0,3296.0,5.05984902]
[1762527388672,0.0984,3298.2,3296.0,5.05984902]
[1762527388673,0.09855412,3298.6,3296.8,0.405504]
[1762527388849,0.09855412,3298.6,3297.4,1.665216]
[1762527389232,0.09855412,3298.6,3297.4,2.156516]
[1762527389629,0.09855412,3298.6,3297.1,0.1878]
[1762527389630,0.09855412,3298.6,3298.0,5.99916016]
[1762527389862,0.09855412,3298.6,3298.1,11.42140302]
[1762527390158,0.09775412,3298.6,3298.2,0.405504]
[1762527390359,0.09775412,3298.6,3298.4,0.405504]
[1762527390669,0.005,3299.9,3298.8,3.03140535]
[1762527390821,0.005,3299.9,3299.6,5.99916016]
[1762527391016,0.005,3299.9,3298.9,0.4913]
[1762527391220,0.4625,3299.8,3298.1,1.259712]
[1762527391458,0.4625,3299.8,3298.2,0.72588722]
[1762527391661,0.4625,3299.8,3297.4,1.259712]
[1762527391864,0.4625,3299.8,3297.5,11.47589]
[1762527392078,3.03107582,3299.2,3297.6,2.176114]
[1762527392227,0.4625,3299.8,3297.4,1.751012]
[1762527392571,0.4625,3299.7,3297.0,1.259712]
[1762527392809,3.03133933,3298.9,3297.2,3.005385]
[1762527392918,3.03076223,3299.5,3297.4,1.259712]
[1762527393118,3.03076223,3299.5,3298.8,0.1512]
[1762527393119,0.4625,3299.5,3298.8,0.1512]
[1762527393323,0.4625,3299.4,3297.4,0.4913]
[1762527393622,0.4625,3299.4,3297.1,0.1928]
[1762527393623,0.4625,3299.4,3297.1,0.005]
[1762527393823,3.03195458,3298.3,3297.1,0.005]
[1762527394054,0.4625,3299.4,3297.1,0.005]
[1762527394055,0.4625,3299.4,3297.2,4.489156]
[1762527394380,0.1958,3299.3,3297.3,7.66437616]
[1762527394582,0.1958,3299.3,3297.6,0.405504]
[1762527394777,0.1958,3299.3,3297.8,1.259712]
[1762527394925,3.0311297,3299.1,3296.8,0.4693]
[1762527395122,0.1958,3299.3,3297.2,3.223724]
[1762527395323,0.1958,3299.3,3297.2,3.693024]
[1762527395523,0.4722,3299.2,3297.3,0.405504]
[1762527395762,0.4722,3299.2,3297.5,1.665216]
[1762527396061,0.4722,3299.2,3297.7,1.665216]
[1762527396226,0.4722,3299.2,3297.8,2.555716]
[1762527396427,0.4722,3299.2,3297.2,1.259712]
[1762527396626,0.1958,3299.3,3297.9,0.405504]
[1762527396826,0.4722,3299.8,3298.5,0.405504]
[1762527397053,0.4722,3299.8,3298.0,0.4693]
[1762527397224,0.4722,3299.8,3296.9,5.99916016]
[1762527397434,0.4722,3299.8,3297.3,1.259712]
[1762527397627,0.4722,3299.8,3297.5,1.259712]
[1762527397827,0.4722,3299.8,3297.7,1.259712]
[1762527398177,0.005,3299.9,3297.7,1.259712]
[1762527398178,0.005,3299.9,3298.6,1.665216]
[1762527398379,0.005,3299.9,3298.8,0.405504]
[1762527398544,0.4745,3299.9,3298.1,1.665216]
[1762527398869,0.4695,3299.6,3297.8,3.03231383]
[1762527399068,0.4695,3299.6,3298.0,1.259712]
[1762527399230,0.4695,3299.6,3298.3,0.405504]
[1762527399431,0.4695,3299.6,3297.2,0.1805]
[1762527399675,0.4695,3299.6,3297.4,1.259712]
[1762527399855,3.03091703,3299.4,3297.7,0.405504]
[1762527400042,0.4695,3299.6,3297.9,1.665216]
[1762527400242,0.005,3299.9,3299.5,3.03068581]
[1762527400480,0.005,3299.9,3299.6,2.38869]
[1762527400685,0.005,3299.9,3299.8,1.665216]
[1762527400885,0.005,3299.9,3299.8,2.47112586]
[1762527401082,0.005,3299.9,3299.8,3.43599069]
[1762527401287,0.0678,3301.3,3300.0,0.405504]
[1762527401488,0.0678,3301.3,3299.7,5.99916016]
[1762527401489,0.4672,3301.2,3299.7,5.99916016]
[1762527401789,0.4672,3301.8,3299.9,0.405504]
[1762527402112,0.0678,3301.4,3300.1,0.405504]
[1762527402414,0.0678,3301.4,3300.3,1.259712]
[1762527402618,0.535,3301.4,3299.6,0.405504]
[1762527402840,0.0678,3301.4,3300.0,5.99916016]
[1762527402971,0.0678,3301.4,3300.8,0.405504]
[1762527403179,0.0678,3301.4,3299.6,0.4871]
[1762527403487,0.4672,3301.2,3300.8,0.1512]
[1762527403685,0.0678,3301.4,3300.8,0.1512]
[1762527404000,0.4722,3300.9,3298.7,0.1881]
[1762527404207,0.4722,3300.9,3299.1,5.99916016]
[1762527404371,0.4722,3300.9,3298.9,0.4871]
[1762527404372,0.005,3300.9,3300.3,0.405504]
[1762527404575,0.005,3300.9,3300.7,0.405504]
[1762527404986,0.005,3300.9,3300.5,0.405504]
[1762527405196,0.005,3300.9,3300.7,0.405504]
[1762527405522,0.005,3300.9,3300.8,12.33446358]
[1762527405735,0.005,3300.9,3300.8,1.665216]
[1762527406027,0.005,3300.9,3300.2,0.405504]
[1762527406329,0.005,3300.9,3300.3,2.34276]
[1762527406524,0.005,3300.9,3300.4,0.03029935]
[1762527406687,0.005,3300.9,3300.2,3.03008823]
[1762527406886,0.005,3300.9,3299.9,1.259712]
[1762527406887,0.005,3300.9,3300.4,0.405504]
[1762527407089,0.005,3300.9,3299.8,1.259712]
[1762527407330,0.198,3299.9,3297.6,0.05]
[1762527407612,0.198,3299.9,3298.2,6.925639]
[1762527407785,0.198,3299.9,3298.1,0.4921]
[1762527407786,0.4672,3299.8,3298.1,0.4921]
[1762527407972,0.4672,3299.8,3298.1,0.005]
[1762527408176,0.4672,3299.8,3298.2,5.357977]
[1762527408413,0.198,3299.9,3298.8,3.0313391]
[1762527408608,0.198,3299.9,3298.2,14.259022]
[1762527408609,0.198,3299.9,3298.9,2.503754]
[1762527408794,0.198,3299.9,3298.1,0.37938892]
[1762527408795,0.4672,3299.8,3298.1,0.37938892]
[1762527408996,0.4672,3299.8,3298.1,0.005]
[1762527409198,3.49772781,3299.8,3298.2,2.608445]
[1762527409401,3.49776462,3299.8,3298.2,2.608445]
[1762527409590,0.4672,3299.7,3298.2,2.645954]
[1762527409788,0.4672,3299.7,3298.1,0.005]
[1762527409989,0.1485,3298.3,3298.1,0.005]
[1762527410187,0.4672,3299.7,3298.1,0.005]
[1762527410415,0.198,3299.9,3298.1,0.005]
[1762527410416,0.6157,3299.6,3298.2,4.04592956]
[1762527410720,0.1485,3299.6,3298.4,1.259712]
[1762527410927,0.1485,3299.6,3298.5,5.929836]
[1762527411221,0.1485,3299.6,3298.6,2.124269]
[1762527411427,0.4672,3299.5,3298.1,0.005]
[1762527411576,0.4672,3299.5,3298.3,1.259712]
[1762527411781,0.1485,3299.6,3297.1,0.005]
[1762527411982,0.1485,3298.2,3297.1,0.005]
[1762527412405,3.03211777,3298.1,3297.1,0.005]
[1762527412613,0.6157,3298.2,3297.1,0.005]
[1762527412795,0.4672,3298.1,3297.1,0.005]
[1762527413122,3.03253134,3297.6,3297.1,0.005]
[1762527413303,0.4664,3298.1,3297.1,0.005]
[1762527413304,3.03214069,3298.0,3297.1,0.005]
[1762527413504,3.03280109,3297.3,3297.1,0.005]
[1762527413823,0.1485,3298.2,3297.1,0.005]
[1762527414119,1.259712,3298.1,3297.1,0.005]
[1762527414279,3.03287637,3297.2,3297.1,0.005]
[1762527414478,3.03275519,3297.4,3295.1,0.005]
[1762527414720,3.03333651,3296.7,3295.1,0.005]
[1762527414925,3.032504,3297.7,3295.1,0.005]
[1762527415213,1.259712,3297.7,3295.1,0.005]
[1762527415452,0.4656,3297.6,3295.1,0.005]
[1762527415661,0.1485,3298.2,3296.2,2.603275]
[1762527415819,0.1485,3298.2,3296.4,0.405504]
[1762527416020,0.4656,3298.8,3296.7,0.405504]
[1762527416217,0.4664,3299.4,3297.7,3.03232464]
[1762527416580,0.4664,3300.0,3298.1,0.405504]
[1762527416870,0.005,3300.9,3297.8,3.905211]
[1762527416871,0.005,3298.9,3298.2,10.558425]
[1762527417019,0.005,3298.9,3298.3,10.437425]
[1762527417220,0.005,3298.9,3298.4,0.03031772]
[1762527417420,0.005,3298.9,3297.8,0.4871]
[1762527417643,3.03563839,3294.2,3294.1,2.17930984]
[1762527417844,3.03563839,3294.2,3293.1,0.005]
[1762527417845,4.770099,3294.2,3293.1,0.005]
[1762527418122,1.11753605,3294.1,3292.1,0.005]
[1762527418456,4.770099,3295.0,3292.1,0.005]
[1762527418457,2.15459037,3292.4,3292.1,0.005]
[1762527418655,2.69323797,3292.9,3292.1,0.005]
[1762527418656,2.15459037,3292.2,3292.1,0.005]
[1762527418855,0.64753605,3292.2,3292.1,0.005]
[1762527420371,1.11753605,3292.2,3292.1,0.005]
[1762527420520,0.64753605,3292.2,3292.1,0.005]
[1762527421076,0.64753605,3292.2,3292.1,0.897604]
[1762527421391,0.80546426,3293.0,3292.2,1.259712]
[1762527421519,0.80546426,3292.8,3292.4,1.259712]
[1762527421725,0.64307874,3292.7,3292.6,1.665216]
[1762527421962,0.64307874,3292.7,3292.6,6.252032]
[1762527422272,0.80546426,3293.3,3293.0,3.03671603]
[1762527422475,0.64209276,3293.2,3293.1,9.77611477]
[1762527422763,1.61129322,3294.1,3292.7,0.4871]
[1762527422764,0.80546426,3293.7,3292.7,0.4871]
[1762527422962,0.64195074,3293.6,3292.9,1.259712]
[1762527423137,0.80546426,3293.4,3293.0,3.277287]
[1762527423342,0.80546426,3293.1,3292.1,0.005]
[1762527423538,0.64195074,3293.3,3292.3,1.259712]
[1762527423539,1.447415,3293.0,3292.3,1.259712]
[1762527423848,0.64127611,3292.9,3292.1,0.005]
[1762527424023,0.80546426,3292.5,3292.1,0.005]
[1762527424223,0.64127611,3292.8,3292.1,0.005]
[1762527424224,0.64127611,3292.4,3292.1,0.005]
[1762527424447,0.80546426,3292.6,3292.1,0.005]
[1762527424448,0.64127611,3292.3,3292.1,0.005]
[1762527424653,0.64127611,3292.2,3292.1,0.005]
[1762527424852,0.80546426,3293.1,3292.1,2.9781]
[1762527425064,0.64018477,3293.0,3292.1,0.4921]
[1762527425367,0.64018477,3292.9,3292.2,2.651263]
[1762527425554,0.80546426,3293.3,3292.2,2.651263]
[1762527425728,0.63931509,3293.2,3292.4,0.405504]
[1762527425928,0.63929539,3293.1,3292.5,5.399264]
[1762527426129,1.07395234,3293.9,3293.2,0.405504]
[1762527426367,0.80546426,3294.7,3293.9,12.262669]
[1762527426535,0.005,3294.9,3293.3,0.405504]
[1762527426739,0.63860236,3294.8,3293.5,1.665216]
[1762527426952,0.005,3294.9,3293.5,1.665216]
[1762527426953,0.63860236,3294.7,3293.5,0.405504]
[1762527427159,1.44406662,3294.6,3293.2,0.405504]
[1762527427480,0.63860236,3294.5,3293.4,0.405504]
[1762527427781,0.005,3294.9,3293.6,0.405504]
[1762527428000,0.005,3294.9,3294.8,4.70030158]
[1762527428133,0.005,3294.9,3294.8,9.03304958]
[1762527428468,0.005,3294.9,3294.8,7.51640958]
[1762527428626,0.005,3294.9,3294.8,7.70354858]
[1762527428830,0.005,3294.9,3294.1,0.1824]
[1762527429053,0.005,3294.9,3294.3,1.665216]
[1762527429326,0.005,3294.9,3294.4,4.096877]
[1762527429530,0.005,3294.9,3294.1,0.1824]
[1762527429730,0.005,3294.9,3294.2,0.405504]
[1762527430074,0.005,3294.9,3294.3,4.257363]
[1762527430370,0.005,3294.9,3293.8,3.195]
[1762527430371,0.005,3294.9,3293.3,0.4847]
[1762527430583,0.63849116,3294.8,3293.5,1.259712]
[1762527430789,0.005,3294.9,3293.7,1.259712]
[1762527430986,0.63847775,3294.8,3293.4,0.4847]
[1762527431190,0.63847775,3294.7,3293.4,0.4847]
[1762527431359,0.005,3294.9,3293.5,3.947127]
[1762527431360,0.63847775,3294.6,3293.5,3.947127]
[1762527431561,0.63847775,3294.5,3293.4,0.4847]
[1762527431781,0.005,3294.9,3293.4,0.4847]
[1762527431782,0.005,3294.9,3294.2,0.405504]
[1762527431961,0.005,3294.9,3292.9,3.03674568]
[1762527432162,0.005,3294.9,3294.2,0.405504]
[1762527432373,0.005,3294.9,3294.4,0.405504]
[1762527432577,0.005,3294.9,3293.7,0.4847]
[1762527433093,0.63947224,3294.8,3293.9,1.259712]
[1762527433275,0.005,3294.9,3294.2,0.405504]
[1762527433476,0.005,3294.9,3294.4,0.405504]
[1762527433788,0.005,3295.9,3295.8,3.03416469]
[1762527433989,0.005,3295.9,3294.8,1.442112]
[1762527433990,0.005,3295.9,3295.2,1.259712]
[1762527434161,0.005,3295.9,3295.4,0.405504]
[1762527434362,0.005,3295.9,3294.8,0.1824]
[1762527434563,0.64061093,3295.8,3294.4,0.4847]
[1762527434766,0.64061093,3295.7,3294.4,0.4847]
[1762527434966,0.64061093,3295.7,3294.3,0.1824]
[1762527434967,0.64061093,3295.6,3294.3,0.1824]
[1762527435169,0.64061093,3295.6,3293.0,0.1824]
[1762527435170,0.64061093,3295.5,3293.8,0.4847]
[1762527435488,0.80546426,3295.3,3294.1,1.259712]
[1762527435692,0.64061093,3295.4,3293.8,0.4847]
[1762527435693,1.44607519,3295.2,3293.8,0.4847]
[1762527435889,1.44607519,3295.2,3293.0,0.1824]
[1762527435890,0.80546426,3294.6,3293.1,0.4847]
[1762527436063,3.03500143,3294.9,3293.1,2.165257]
[1762527436064,0.80546426,3294.5,3293.1,2.165257]
[1762527436265,4.1093143,3294.5,3294.4,0.1512]
[1762527436601,0.4622,3294.4,3293.1,0.005]
[1762527436752,0.8039701,3293.7,3293.1,0.005]
[1762527437086,0.8039701,3293.8,3293.1,0.005]
[1762527437285,0.8039701,3293.4,3293.1,0.005]
[1762527437784,0.8039701,3293.7,3293.1,0.005]
[1762527437958,0.8039701,3293.6,3293.1,0.005]
[1762527438171,0.8039701,3293.7,3293.1,0.005]
[1762527438370,0.8039701,3294.0,3293.2,3.361209]
[1762527438577,0.8039701,3293.6,3293.1,0.005]
[1762527438985,0.8039701,3293.4,3293.1,0.005]
[1762527439185,0.8039701,3293.7,3293.4,3.03636772]
[1762527439386,0.8039701,3294.1,3293.7,2.018099]
[1762527439586,0.8039701,3294.6,3293.0,0.890204]
[1762527439799,0.8039701,3294.6,3293.4,0.842704]
[1762527439968,0.8039701,3294.6,3292.9,0.95]
[1762527439969,0.8039701,3294.4,3293.5,2.41671]
[1762527440169,0.8039701,3294.4,3292.9,0.4847]
[1762527440170,0.8039701,3294.2,3292.9,1.744412]
[1762527440368,0.8039701,3293.9,3293.2,4.709079]
[1762527440563,3.03537996,3294.5,3292.9,0.4847]
[1762527440564,0.8039701,3293.8,3292.9,0.4847]
[1762527440769,0.8039701,3293.8,3292.6,0.1824]
[1762527440970,0.8039701,3293.8,3293.2,3.356735]
[1762527441184,0.8039701,3293.9,3293.2,2.396735]
[1762527441383,0.8039701,3293.7,3293.2,2.179916]
[1762527441577,0.8039701,3293.7,3293.2,2.045323]
[1762527441906,0.8039701,3293.7,3293.2,4.824701]
[1762527442090,0.646,3293.6,3292.2,0.951]
[1762527442291,0.646,3293.6,3292.7,0.405504]
[1762527442471,0.8039701,3293.7,3292.7,0.405504]
[1762527442672,0.8039701,3293.6,3292.9,0.405504]
[1762527442873,0.8039701,3293.4,3291.3,0.1881]
[1762527443069,1.6079402,3293.3,3291.3,0.6728]
[1762527443308,3.03656018,3293.2,3291.3,0.6728]
[1762527443466,1.6079402,3293.3,3291.3,0.6728]
[1762527443671,0.80988788,3293.2,3292.2,2.560701]
[1762527443993,0.80988788,3293.1,3292.2,2.831528]
[1762527444314,0.4615,3293.3,3291.3,0.6728]
[1762527444518,0.80988788,3293.0,3291.3,0.1881]
[1762527444702,0.80988788,3292.9,3291.1,0.005]
[1762527444903,0.80988788,3293.6,3292.2,17.54792817]
[1762527445084,0.002,3293.7,3292.5,0.405504]
[1762527445280,0.002,3293.7,3292.8,0.001]
[1762527445467,0.002,3293.7,3292.9,4.016319]
[1762527445707,0.002,3293.7,3292.9,3.500924]
[1762527446020,0.002,3293.7,3293.6,3.4416954]
[1762527446170,0.002,3293.7,3293.0,0.4847]
[1762527446373,0.002,3293.7,3293.6,0.1512]
[1762527447116,0.002,3293.7,3293.6,0.405504]
[1762527447318,0.002,3293.7,3293.6,6.7367294]
[1762527447473,0.002,3293.7,3293.6,0.405504]
[1762527447771,0.002,3293.7,3293.6,2.351064]
[1762527447972,0.65304497,3293.7,3293.3,2.203818]
[1762527448207,0.65104497,3293.6,3293.1,0.405504]
[1762527448474,0.002,3293.7,3293.2,2.008514]
[1762527448713,0.002,3293.7,3292.9,3.03681796]
[1762527448714,0.002,3293.7,3293.3,2.541774]
[1762527448880,0.002,3293.7,3293.0,2.409575]
[1762527449083,0.002,3293.7,3293.2,0.405504]
[1762527449283,0.002,3293.7,3293.3,6.768062]
[1762527449503,0.002,3293.7,3293.4,6.766407]
[1762527449711,0.002,3293.7,3293.3,5.197783]
[1762527450019,0.002,3293.7,3292.9,0.405504]
[1762527450184,0.002,3293.7,3293.1,0.405504]
[1762527450385,0.002,3293.7,3293.2,5.555187]
[1762527450773,0.65148134,3293.6,3293.2,5.555187]
[1762527450978,0.002,3293.7,3293.3,3.588782]
[1762527451187,0.002,3293.7,3293.2,4.679186]
[1762527451388,0.002,3293.7,3292.8,0.001]
[1762527451389,0.65159859,3293.6,3292.8,0.001]
[1762527451589,0.4642,3293.7,3292.8,0.001]
[1762527451590,0.80988788,3293.2,3292.8,0.001]
[1762527451814,0.80988788,3292.9,3292.8,0.001]
[1762527451978,0.80988788,3292.9,3292.1,0.005]
[1762527451979,3.03748253,3292.2,3292.1,0.005]
[1762527452177,0.65159859,3292.2,3290.1,0.005]
[1762527452411,1.08553957,3291.3,3290.1,0.005]
[1762527452586,0.65159859,3291.2,3290.1,0.005]
[1762527452792,0.81442329,3290.6,3290.1,0.005]
[1762527452977,0.65159859,3290.5,3290.1,0.005]
[1762527453180,0.65159859,3290.4,3290.1,0.005]
[1762527453481,0.81442329,3290.8,3290.1,0.005]
[1762527453676,0.65047781,3290.7,3290.2,4.400842]
[1762527453877,0.65047781,3290.6,3290.3,3.03923654]
[1762527454108,0.81442329,3291.2,3290.3,6.061388]
[1762527454303,0.4622,3291.4,3290.4,4.590484]
[1762527454505,0.64994271,3291.3,3290.5,4.729487]
[1762527454710,1.08589773,3291.7,3290.1,0.005]
[1762527454711,0.81442329,3291.7,3290.6,8.395382]
[1762527454915,0.64988481,3291.6,3291.0,3.03858596]
[1762527455215,0.64988481,3291.6,3290.8,3.03877476]
[1762527455216,0.99822329,3292.3,3291.1,3.640525]
[1762527455418,0.1838,3292.8,3291.5,0.405504]
[1762527455623,0.1838,3292.8,3291.2,30.405504]
[1762527455624,0.81442329,3293.6,3291.8,0.405504]
[1762527455822,0.005,3293.9,3292.8,4.88794505]
[1762527456004,1e-08,3292.9,3292.8,4.88794505]
[1762527456181,1e-08,3292.9,3292.8,22.12468605]
[1762527456377,1e-08,3292.9,3292.8,5.37014505]
[1762527456577,1e-08,3292.9,3292.8,12.88052029]
[1762527456813,1e-08,3292.9,3292.8,5.37014505]
[1762527457049,1e-08,3292.9,3292.8,5.52134505]
[1762527457208,1e-08,3292.9,3292.8,34.09720005]
[1762527457405,1e-08,3292.9,3292.8,35.52134505]
[1762527457648,1e-08,3292.9,3292.8,36.45434505]
[1762527457817,0.005,3293.9,3293.6,3.4416954]
[1762527458017,0.005,3293.9,3293.6,4.7014074]
[1762527458222,0.005,3293.9,3292.9,0.4822]
[1762527458442,0.005,3293.9,3293.0,19.451446]
[1762527458653,0.0012,3293.7,3293.6,3.0361914]
[1762527458956,0.0012,3293.7,3293.5,2.139774]
[1762527459112,0.0012,3293.7,3293.3,3.03641716]
[1762527459445,0.0012,3293.7,3293.6,3.0361914]
[1762527459660,0.0012,3293.7,3293.6,4.2959034]
[1762527459962,0.0012,3293.7,3293.6,6.9474044]
[1762527460252,0.0012,3293.7,3293.6,3.039146]
[1762527460436,0.0012,3293.7,3292.9,0.4813]
[1762527460752,0.0012,3293.7,3293.1,1.259712]
[1762527460958,0.0012,3293.7,3292.6,1.26066388]
[1762527461144,0.0012,3293.7,3292.8,1.259712]
[1762527461445,0.0012,3293.7,3293.3,3.03646218]
[1762527461649,0.0012,3293.7,3292.6,0.00095188]
[1762527461853,0.0012,3293.7,3293.1,1.259712]
[1762527462023,0.0012,3293.7,3292.7,10.244181]
[1762527462024,0.0012,3293.7,3292.7,0.4813]
[1762527462213,0.0012,3293.7,3292.8,6.270593]
[1762527462415,0.0012,3293.7,3292.9,5.55219]
[1762527462610,0.0012,3293.7,3292.8,1.259712]
[1762527462810,0.0012,3293.7,3293.0,1.259712]
[1762527463036,0.0012,3293.7,3292.7,3.03700587]
[1762527463254,0.0012,3293.7,3292.6,0.00095188]
[1762527463457,0.4911,3293.7,3292.7,5.309246]
[1762527463615,0.4911,3293.7,3292.6,0.00095188]
[1762527463810,0.65003624,3293.6,3292.6,0.00095188]
[1762527464039,0.65003624,3293.5,3292.6,0.00095188]
[1762527464243,0.4911,3293.7,3292.7,3.818511]
[1762527464549,1.14054372,3293.6,3292.6,0.00095188]
[1762527464713,1.14054372,3293.5,3292.7,5.733974]
[1762527464909,0.4899,3293.5,3292.6,0.00095188]
[1762527465117,1.14052383,3293.4,3292.6,0.00095188]
[1762527465315,0.1889,3292.7,3292.6,0.00095188]
[1762527465752,0.6788,3292.7,3292.6,0.00095188]
[1762527466131,1.32982065,3292.7,3292.6,0.00095188]
[1762527466332,0.6788,3292.7,3292.6,0.00095188]
[1762527468356,0.6788,3292.7,3292.6,0.15215188]
[1762527471223,0.1889,3292.7,3292.6,0.15215188]
[1762527471625,0.6788,3292.7,3292.6,0.15215188]
[1762527472065,0.4899,3293.3,3292.6,0.00095188]
[1762527472262,0.4899,3293.3,3292.6,0.15215188]
[1762527472497,0.4899,3293.3,3292.7,2.183966]
[1762527472803,0.0012,3293.7,3292.7,2.183966]
[1762527473303,0.4899,3293.6,3292.6,0.00095188]
[1762527473455,0.1889,3292.7,3292.6,0.00095188]
[1762527474291,0.4899,3293.5,3292.6,0.00095188]
[1762527474496,0.4899,3293.4,3292.6,0.00095188]
[1762527474679,0.1889,3292.7,3292.6,0.00095188]
[1762527474878,0.4899,3293.4,3292.6,4.51980088]
[1762527475183,0.0012,3293.7,3292.6,4.51980088]
[1762527475184,0.0012,3293.7,3293.2,3.03649261]
[1762527475493,0.0012,3293.7,3292.8,0.405504]
[1762527475744,0.0012,3293.7,3292.9,2.895487]
[1762527475997,0.0012,3293.7,3293.0,4.281854]
[1762527476181,0.0012,3293.7,3292.6,3.03806493]
[1762527476389,0.0012,3293.7,3292.8,3.03687014]
[1762527476561,0.0012,3293.7,3292.9,3.469254]
[1762527476757,0.0012,3293.7,3293.0,0.03036744]
[1762527476985,0.0012,3293.7,3293.2,0.405504]
[1762527477174,0.0012,3293.7,3293.3,6.510179]
[1762527477358,0.0012,3293.7,3292.6,3.03800633]
[1762527477359,0.4911,3293.7,3292.6,0.00095188]